fUSD/lending_fUSD_20250628
["ID","MTS","AMOUNT","RATE_DAILY","PERIOD"]
[368235877,1751069234577,156.24,0.00013699,2]
[368236462,1751069431600,-454.9292423,0.00027397,7]
[368236463,1751069431660,-1284.9407577,0.00027397,7]
[368236464,1751069431670,-1200.0,0.00033507,3]
[368236465,1751069431680,-12500.0,0.00033508,5]
[368236466,1751069431689,-12500.0,0.00033517,5]
[368236467,1751069431699,-12500.0,0.00033526,5]
[368236468,1751069431709,-160.36,0.00035,2]
[368236469,1751069431718,-172.11543843,0.00035616,2]
[368236470,1751069431728,-250.0,0.00036859,2]
[368236471,1751069431738,-150.0,0.00038417,2]
[368236472,1751069431747,-686.0,0.00038417,120]
[368236473,1751069431756,-168.0,0.00041062,2]
[368236474,1751069431766,-168.0,0.0004146,2]
[368236475,1751069431775,-4101.0,0.00041823,2]
[368236476,1751069431785,-168.0,0.00042448,2]
[368236477,1751069431795,-1000.0,0.00042604,2]
[368236478,1751069431805,-150.09,0.00042655,2]
[368236479,1751069431815,-169.16,0.00042842,2]
[368236480,1751069431824,-165.45,0.00042875,2]
[368236482,1751069431833,-168.0,0.00043226,2]
[368236484,1751069431843,-168.0,0.00043232,7]
[368236486,1751069431852,-168.0,0.00043536,2]
[368236488,1751069431865,-500.0,0.00043644,2]
[368236490,1751069431875,-151.0,0.00043709,2]
[368236492,1751069431884,-150.99,0.00043725,2]
[368236494,1751069431894,-5363.7611591,0.00043735,15]
[368236496,1751069431904,-7435.45317965,0.00043735,15]
[368236498,1751069431913,-360.21096333,0.00043735,28]
[368236500,1751069431923,-2195.38743298,0.00043735,16]
[368236501,1751069431932,-10387.0699,0.00043735,2]
[368236503,1751069431941,-1000.0,0.00043735,2]
[368236505,1751069431954,-5000.0,0.00043735,2]
[368236507,1751069431963,-45076.3485,0.00043735,2]
[368236509,1751069431973,-1000.0,0.00043735,2]
[368236511,1751069431982,-489.84999669,0.00043824,7]
[368236513,1751069431992,-430.14820079,0.00043824,7]
[368236515,1751069432001,-1166.34,0.00043825,120]
[368236517,1751069432011,-43956.51243239,0.00043825,3]
[368236520,1751069432035,-22700.83156131,0.00043825,3]
[368236522,1751069432045,-172.18,0.00043825,2]
[368236524,1751069432055,-834.90771015,0.00043825,3]
[368236527,1751069432064,-1166.34,0.00043834,120]
[368236528,1751069432073,-1878.14,0.00043834,120]
[368236530,1751069432083,-213.21556583,0.00043834,31]
[368236532,1751069432092,-181.78324667,0.00043834,31]
[368236534,1751069432102,-500.0,0.00043834,31]
[368236536,1751069432115,-500.0,0.00043834,31]
[368236538,1751069432125,-567.38595618,0.00043834,31]
[368236541,1751069432135,-500.0,0.00043834,31]
[368236542,1751069432144,-500.0,0.00043834,31]
[368236544,1751069432154,-500.0,0.00043834,31]
[368236546,1751069432163,-500.0,0.00043834,31]
[368236548,1751069432172,-500.0,0.00043834,31]
[368236550,1751069432181,-416.67970727,0.00043834,31]
[368236552,1751069432190,-500.0,0.00043834,31]
[368236554,1751069432199,-500.0,0.00043834,31]
[368236556,1751069432209,-500.0,0.00043834,31]
[368236558,1751069432218,-500.0,0.00043834,31]
[368236560,1751069432227,-500.0,0.00043834,31]
[368236562,1751069432237,-500.0,0.00043834,31]
[368236564,1751069432246,-400.0,0.00043834,31]
[368236566,1751069432256,-500.0,0.00043834,31]
[368236568,1751069432266,-500.0,0.00043834,31]
[368236570,1751069432275,-500.0,0.00043834,31]
[368236572,1751069432285,-202.23426497,0.00043834,31]
[368236574,1751069432294,-600.0,0.00043834,31]
[368236576,1751069432304,-500.0,0.00043834,31]
[368236578,1751069432313,-155.47410277,0.00043834,31]
[368236580,1751069432322,-500.0,0.00043834,31]
[368236582,1751069432332,-500.0,0.00043834,31]
[368236584,1751069432342,-490.0,0.00043835,60]
[368236586,1751069432351,-490.0,0.00043835,60]
[368236589,1751069432360,-490.0,0.00043835,60]
[368236591,1751069432369,-490.0,0.00043835,60]
[368236593,1751069432379,-490.0,0.00043835,60]
[368236595,1751069432389,-540.0,0.00043835,60]
[368236596,1751069432398,-490.0,0.00043835,60]
[368236599,1751069432407,-490.0,0.00043835,60]
[368236601,1751069432416,-490.0,0.00043835,60]
[368236602,1751069432426,-490.0,0.00043835,60]
[368236604,1751069432435,-490.0,0.00043835,60]
[368236606,1751069432444,-540.0,0.00043835,60]
[368236608,1751069432453,-490.0,0.00043835,60]
[368236611,1751069432463,-540.0,0.00043835,60]
[368236613,1751069432473,-500.0,0.00043835,120]
[368236614,1751069432482,-546.8408663,0.00043835,60]
[368236616,1751069432491,-490.0,0.00043835,60]
[368236618,1751069432500,-490.0,0.00043835,60]
[368236621,1751069432510,-490.0,0.00043835,60]
[368236622,1751069432519,-490.0,0.00043835,60]
[368236625,1751069432529,-500.0,0.00043835,60]
[368236627,1751069432539,-490.0,0.00043835,60]
[368236628,1751069432548,-490.0,0.00043835,60]
[368236630,1751069432558,-490.0,0.00043835,60]
[368236633,1751069432567,-530.0,0.00043835,60]
[368236635,1751069432577,-490.0,0.00043835,60]
[368236636,1751069432586,-490.0,0.00043835,60]
[368236638,1751069432595,-490.0,0.00043835,60]
[368236641,1751069432605,-490.0,0.00043835,60]
[368236643,1751069432614,-490.0,0.00043835,60]
[368236644,1751069432624,-490.0,0.00043835,60]
[368236646,1751069432634,-965.35,0.00043835,60]
[368236648,1751069432643,-618.36,0.00043835,60]
[368236650,1751069432653,-550.0,0.00043835,60]
[368236652,1751069432662,-490.0,0.00043835,60]
[368236654,1751069432671,-490.0,0.00043835,60]
[368236656,1751069432681,-490.0,0.00043835,60]
[368236658,1751069432690,-490.0,0.00043835,60]
[368236660,1751069432700,-490.0,0.00043835,60]
[368236663,1751069432709,-490.0,0.00043835,60]
[368236665,1751069432719,-490.0,0.00043835,60]
[368236667,1751069432728,-490.0,0.00043835,60]
[368236669,1751069432738,-247.9,0.00043835,60]
[368236671,1751069432747,-490.0,0.00043835,60]
[368236673,1751069432757,-490.0,0.00043835,60]
[368236675,1751069432766,-490.0,0.00043835,60]
[368236677,1751069432776,-714.42,0.00043835,2]
[368236679,1751069432784,-490.0,0.00043835,60]
[368236680,1751069432794,-490.0,0.00043835,60]
[368236682,1751069432803,-490.0,0.00043835,60]
[368236684,1751069432812,-490.0,0.00043835,60]
[368236686,1751069432822,-490.0,0.00043835,60]
[368236688,1751069432831,-490.0,0.00043835,60]
[368236690,1751069432841,-531.22,0.00043835,60]
[368236692,1751069432850,-490.0,0.00043835,60]
[368236694,1751069432863,-490.0,0.00043835,60]
[368236697,1751069432872,-490.0,0.00043835,60]
[368236699,1751069432882,-490.0,0.00043835,60]
[368236701,1751069432892,-385.87530447,0.00043835,60]
[368236703,1751069432902,-490.0,0.00043835,60]
[368236705,1751069432912,-490.0,0.00043835,60]
[368236707,1751069432921,-490.0,0.00043835,60]
[368236709,1751069432933,-490.0,0.00043835,60]
[368236711,1751069432942,-490.0,0.00043835,60]
[368236713,1751069432951,-490.0,0.00043835,60]
[368236715,1751069432960,-490.0,0.00043835,60]
[368236717,1751069432970,-490.0,0.00043835,60]
[368236719,1751069432979,-490.0,0.00043835,60]
[368236720,1751069432988,-490.0,0.00043835,60]
[368236722,1751069432998,-224.5,0.00043835,120]
[368236724,1751069433007,-490.0,0.00043835,60]
[368236726,1751069433017,-490.0,0.00043835,60]
[368236728,1751069433026,-490.0,0.00043835,60]
[368236731,1751069433036,-490.0,0.00043835,60]
[368236732,1751069433045,-490.0,0.00043835,60]
[368236734,1751069433055,-490.0,0.00043835,60]
[368236736,1751069433064,-490.0,0.00043835,60]
[368236738,1751069433074,-490.0,0.00043835,60]
[368236740,1751069433083,-229.42,0.00043835,60]
[368236742,1751069433093,-490.0,0.00043835,60]
[368236744,1751069433104,-490.0,0.00043835,60]
[368236747,1751069433114,-319.14,0.00043835,60]
[368236748,1751069433126,-490.0,0.00043835,60]
[368236750,1751069433136,-490.0,0.00043835,60]
[368236753,1751069433146,-490.0,0.00043835,60]
[368236754,1751069433156,-490.0,0.00043835,60]
[368236756,1751069433166,-490.0,0.00043835,60]
[368236758,1751069433175,-556.55,0.00043835,60]
[368236761,1751069433185,-490.0,0.00043835,60]
[368236762,1751069433195,-490.0,0.00043835,60]
[368236764,1751069433205,-490.0,0.00043835,60]
[368236767,1751069433215,-490.0,0.00043835,60]
[368236768,1751069433225,-490.0,0.00043835,60]
[368236771,1751069433234,-490.0,0.00043835,60]
[368236772,1751069433243,-490.0,0.00043835,60]
[368236774,1751069433253,-490.0,0.00043835,60]
[368236777,1751069433262,-417.49,0.00043835,60]
[368236779,1751069433272,-490.0,0.00043835,60]
[368236781,1751069433281,-490.0,0.00043835,60]
[368236783,1751069433291,-490.0,0.00043835,60]
[368236784,1751069433300,-490.0,0.00043835,60]
[368236787,1751069433309,-490.0,0.00043835,60]
[368236789,1751069433319,-490.0,0.00043835,60]
[368236791,1751069433329,-490.0,0.00043835,60]
[368236793,1751069433338,-349.6,0.00043835,60]
[368236795,1751069433347,-490.0,0.00043835,60]
[368236797,1751069433357,-355.06,0.00043835,60]
[368236798,1751069433366,-490.0,0.00043835,60]
[368236800,1751069433375,-529.7,0.00043835,60]
[368236803,1751069433386,-170.10310972,0.00043835,60]
[368236805,1751069433395,-490.0,0.00043835,60]
[368236806,1751069433404,-490.0,0.00043835,60]
[368236808,1751069433414,-222.27,0.00043835,60]
[368236810,1751069433423,-490.0,0.00043835,60]
[368236813,1751069433433,-247.54,0.00043835,60]
[368236814,1751069433442,-490.0,0.00043835,60]
[368236816,1751069433451,-490.0,0.00043835,60]
[368236818,1751069433461,-638.44,0.00043835,60]
[368236820,1751069433470,-524.11,0.00043835,60]
[368236822,1751069433480,-490.0,0.00043835,60]
[368236824,1751069433489,-490.0,0.00043835,60]
[368236826,1751069433498,-490.0,0.00043835,60]
[368236828,1751069433508,-490.0,0.00043835,60]
[368236831,1751069433518,-490.0,0.00043835,60]
[368236832,1751069433527,-490.0,0.00043835,60]
[368236835,1751069433537,-490.0,0.00043835,60]
[368236836,1751069433546,-490.0,0.00043835,60]
[368236838,1751069433555,-160.61,0.00043835,60]
[368236841,1751069433565,-490.0,0.00043835,60]
[368236842,1751069433575,-607.06113793,0.00043835,60]
[368236845,1751069433585,-490.0,0.00043835,60]
[368236846,1751069433594,-490.0,0.00043835,60]
[368236848,1751069433604,-490.0,0.00043835,60]
[368236850,1751069433613,-490.0,0.00043835,60]
[368236852,1751069433623,-490.0,0.00043835,60]
[368236854,1751069433634,-490.0,0.00043835,60]
[368236856,1751069433643,-490.0,0.00043835,60]
[368236858,1751069433652,-549.18,0.00043835,60]
[368236860,1751069433662,-490.0,0.00043835,60]
[368236862,1751069433671,-766.77,0.00043835,60]
[368236864,1751069433681,-490.0,0.00043835,60]
[368236866,1751069433691,-490.0,0.00043835,60]
[368236869,1751069433701,-490.0,0.00043835,60]
[368236870,1751069433710,-490.0,0.00043835,60]
[368236873,1751069433720,-490.0,0.00043835,60]
[368236874,1751069433730,-490.0,0.00043835,60]
[368236876,1751069433740,-490.0,0.00043835,60]
[368236878,1751069433749,-317.58,0.00043835,60]
[368236880,1751069433759,-490.0,0.00043835,60]
[368236883,1751069433769,-490.0,0.00043835,60]
[368236885,1751069433779,-547.8,0.00043835,60]
[368236886,1751069433789,-490.0,0.00043835,60]
[368236887,1751069433799,-490.0,0.00043835,60]
[368236888,1751069433809,-490.0,0.00043835,60]
[368236889,1751069433818,-490.0,0.00043835,60]
[368236890,1751069433827,-490.0,0.00043835,60]
[368236891,1751069433837,-490.0,0.00043835,60]
[368236892,1751069433846,-490.0,0.00043835,60]
[368236893,1751069433856,-490.0,0.00043835,60]
[368236894,1751069433867,-490.0,0.00043835,60]
[368236895,1751069433877,-341.49697668,0.00043835,60]
[368236896,1751069433888,-490.0,0.00043835,60]
[368236897,1751069433898,-490.0,0.00043835,60]
[368236898,1751069433909,-490.0,0.00043835,60]
[368236899,1751069433918,-490.0,0.00043835,60]
[368236900,1751069433928,-363.18,0.00043835,60]
[368236901,1751069433938,-490.0,0.00043835,60]
[368236903,1751069433948,-490.0,0.00043835,60]
[368236905,1751069433958,-490.0,0.00043835,60]
[368236907,1751069433968,-490.0,0.00043835,60]
[368236909,1751069433979,-490.0,0.00043835,60]
[368236911,1751069433988,-490.0,0.00043835,60]
[368236913,1751069433998,-589.76,0.00043835,60]
[368236915,1751069434008,-490.0,0.00043835,60]
[368236917,1751069434018,-490.0,0.00043835,60]
[368236919,1751069434028,-490.0,0.00043835,60]
[368236921,1751069434037,-490.0,0.00043835,60]
[368236923,1751069434047,-490.0,0.00043835,60]
[368236925,1751069434056,-490.0,0.00043835,60]
[368236927,1751069434065,-3072.53,0.00043835,60]
[368236929,1751069434075,-490.0,0.00043835,60]
[368236931,1751069434085,-1467.83,0.00043835,60]
[368236933,1751069434095,-490.0,0.00043835,60]
[368236935,1751069434104,-490.0,0.00043835,60]
[368236937,1751069434114,-490.0,0.00043835,60]
[368236939,1751069434123,-490.0,0.00043835,60]
[368236941,1751069434133,-490.0,0.00043835,60]
[368236943,1751069434142,-490.0,0.00043835,60]
[368236945,1751069434153,-490.0,0.00043835,60]
[368236947,1751069434162,-520.0,0.00043835,60]
[368236949,1751069434172,-490.0,0.00043835,60]
[368236951,1751069434181,-490.0,0.00043835,60]
[368236953,1751069434191,-523.74293135,0.00043835,60]
[368236955,1751069434201,-490.0,0.00043835,60]
[368236957,1751069434210,-530.0,0.00043835,60]
[368236959,1751069434219,-490.0,0.00043835,60]
[368236961,1751069434228,-490.0,0.00043835,60]
[368236963,1751069434238,-726.44,0.00043835,60]
[368236965,1751069434247,-490.0,0.00043835,60]
[368236967,1751069434257,-293.73,0.00043835,60]
[368236969,1751069434266,-490.0,0.00043835,60]
[368236971,1751069434275,-2380.26,0.00043835,60]
[368236973,1751069434285,-490.0,0.00043835,60]
[368236975,1751069434294,-490.0,0.00043835,60]
[368236977,1751069434303,-490.0,0.00043835,60]
[368236979,1751069434312,-647.06,0.00043835,60]
[368236981,1751069434322,-490.0,0.00043835,60]
[368236983,1751069434331,-490.0,0.00043835,60]
[368236985,1751069434340,-490.0,0.00043835,60]
[368236987,1751069434350,-567.62,0.00043835,60]
[368236989,1751069434359,-490.0,0.00043835,60]
[368236991,1751069434369,-490.0,0.00043835,60]
[368236993,1751069434379,-490.0,0.00043835,60]
[368236995,1751069434388,-1206.96,0.00043835,60]
[368236997,1751069434397,-490.0,0.00043835,60]
[368236999,1751069434407,-520.0,0.00043835,60]
[368237001,1751069434416,-755.94,0.00043835,60]
[368237003,1751069434425,-490.0,0.00043835,60]
[368237005,1751069434435,-490.0,0.00043835,60]
[368237007,1751069434445,-490.0,0.00043835,60]
[368237009,1751069434457,-490.0,0.00043835,60]
[368237011,1751069434466,-490.0,0.00043835,60]
[368237013,1751069434475,-1003.55,0.00043835,60]
[368237015,1751069434486,-616.92,0.00043835,60]
[368237017,1751069434495,-167.578632,0.00043835,60]
[368237019,1751069434505,-729.83,0.00043835,60]
[368237021,1751069434514,-530.0,0.00043835,60]
[368237023,1751069434523,-490.0,0.00043835,60]
[368237025,1751069434533,-490.0,0.00043835,60]
[368237027,1751069434542,-490.0,0.00043835,60]
[368237029,1751069434552,-490.0,0.00043835,60]
[368237031,1751069434561,-605.88,0.00043835,60]
[368237033,1751069434570,-700.99,0.00043835,60]
[368237035,1751069434580,-490.0,0.00043835,60]
[368237037,1751069434590,-1319.32,0.00043835,60]
[368237039,1751069434599,-490.0,0.00043835,60]
[368237041,1751069434609,-993.52,0.00043835,60]
[368237043,1751069434618,-490.0,0.00043835,60]
[368237045,1751069434628,-490.0,0.00043835,60]
[368237047,1751069434641,-490.0,0.00043835,60]
[368237049,1751069434650,-914.73,0.00043835,60]
[368237069,1751069434819,-939.41,0.00043835,60]
[368237071,1751069434831,-490.0,0.00043835,60]
[368237073,1751069434840,-490.0,0.00043835,60]
[368237075,1751069434849,-520.81,0.00043835,60]
[368237077,1751069434859,-490.0,0.00043835,60]
[368237079,1751069434869,-490.0,0.00043835,60]
[368237081,1751069434878,-490.0,0.00043835,60]
[368237083,1751069434888,-825.96,0.00043835,60]
[368237084,1751069434897,-490.0,0.00043835,60]
[368237086,1751069434908,-490.0,0.00043835,60]
[368237088,1751069434917,-490.0,0.00043835,60]
[368237090,1751069434927,-490.0,0.00043835,60]
[368237092,1751069434938,-3805.32,0.00043835,60]
[368237094,1751069434949,-490.0,0.00043835,60]
[368237096,1751069434959,-959.76,0.00043835,60]
[368237099,1751069434969,-4181.29,0.00043835,60]
[368237101,1751069434978,-750.82,0.00043835,60]
[368237103,1751069434988,-490.0,0.00043835,60]
[368237105,1751069434997,-908.44,0.00043835,60]
[368237107,1751069435008,-490.0,0.00043835,60]
[368237108,1751069435017,-898.33,0.00043835,60]
[368237110,1751069435027,-490.0,0.00043835,60]
[368237112,1751069435037,-5880.74,0.00043835,60]
[368237115,1751069435047,-505.7,0.00043835,60]
[368237117,1751069435056,-490.0,0.00043835,60]
[368237118,1751069435066,-947.25,0.00043835,60]
[368237121,1751069435076,-490.0,0.00043835,60]
[368237123,1751069435086,-490.0,0.00043835,60]
[368237125,1751069435095,-490.0,0.00043835,60]
[368237127,1751069435104,-1604.01,0.00043835,60]
[368237129,1751069435114,-666.6,0.00043835,60]
[368237131,1751069435123,-490.0,0.00043835,60]
[368237133,1751069435132,-490.0,0.00043835,60]
[368237135,1751069435141,-490.0,0.00043835,60]
[368237137,1751069435151,-705.36,0.00043835,60]
[368237139,1751069435161,-558.49,0.00043835,60]
[368237141,1751069435170,-859.99,0.00043835,60]
[368237143,1751069435179,-490.0,0.00043835,60]
[368237145,1751069435188,-490.0,0.00043835,60]
[368237147,1751069435198,-598.1328701,0.00043835,60]
[368237149,1751069435207,-490.0,0.00043835,60]
[368237151,1751069435216,-1648.56,0.00043835,60]
[368237153,1751069435225,-490.0,0.00043835,60]
[368237155,1751069435235,-649.49,0.00043835,60]
[368237157,1751069435244,-490.0,0.00043835,60]
[368237159,1751069435254,-490.0,0.00043835,60]
[368237161,1751069435263,-1163.55,0.00043835,60]
[368237163,1751069435272,-626.04,0.00043835,60]
[368237165,1751069435282,-490.0,0.00043835,60]
[368237167,1751069435291,-490.0,0.00043835,60]
[368237169,1751069435301,-520.0,0.00043835,60]
[368237171,1751069435310,-716.57,0.00043835,60]
[368237173,1751069435321,-490.0,0.00043835,60]
[368237175,1751069435331,-490.0,0.00043835,60]
[368237177,1751069435340,-490.0,0.00043835,60]
[368237179,1751069435350,-540.98,0.00043835,60]
[368237181,1751069435359,-490.0,0.00043835,60]
[368237183,1751069435369,-890.86,0.00043835,60]
[368237185,1751069435379,-490.0,0.00043835,60]
[368237187,1751069435388,-490.0,0.00043835,60]
[368237189,1751069435397,-490.0,0.00043835,60]
[368237191,1751069435407,-490.0,0.00043835,60]
[368237193,1751069435416,-490.0,0.00043835,60]
[368237195,1751069435425,-764.59,0.00043835,60]
[368237197,1751069435434,-490.0,0.00043835,60]
[368237199,1751069435443,-490.0,0.00043835,60]
[368237201,1751069435452,-490.0,0.00043835,60]
[368237203,1751069435461,-490.0,0.00043835,60]
[368237205,1751069435471,-490.0,0.00043835,60]
[368237207,1751069435480,-490.0,0.00043835,60]
[368237209,1751069435489,-490.0,0.00043835,60]
[368237211,1751069435498,-490.0,0.00043835,60]
[368237213,1751069435507,-814.39,0.00043835,60]
[368237215,1751069435516,-490.0,0.00043835,60]
[368237217,1751069435525,-490.0,0.00043835,60]
[368237219,1751069435535,-589.09,0.00043835,60]
[368237221,1751069435544,-928.74,0.00043835,60]
[368237223,1751069435553,-3531.51,0.00043835,60]
[368237225,1751069435563,-490.0,0.00043835,60]
[368237227,1751069435572,-1503.09,0.00043835,60]
[368237229,1751069435581,-490.0,0.00043835,60]
[368237231,1751069435590,-490.0,0.00043835,60]
[368237233,1751069435599,-616.75,0.00043835,60]
[368237235,1751069435609,-1098.53,0.00043835,60]
[368237237,1751069435618,-490.0,0.00043835,60]
[368237239,1751069435627,-165.53572203,0.00043835,60]
[368237241,1751069435637,-490.0,0.00043835,60]
[368237243,1751069435646,-633.25,0.00043835,60]
[368237245,1751069435655,-822.78,0.00043835,60]
[368237247,1751069435664,-373.75,0.00043835,60]
[368237249,1751069435674,-490.0,0.00043835,60]
[368237251,1751069435683,-490.0,0.00043835,60]
[368237253,1751069435691,-532.46,0.00043835,60]
[368237254,1751069435700,-667.92,0.00043835,60]
[368237256,1751069435710,-490.0,0.00043835,60]
[368237258,1751069435719,-1012.77,0.00043835,60]
[368237261,1751069435729,-962.34,0.00043835,60]
[368237263,1751069435738,-1797.09,0.00043835,60]
[368237265,1751069435747,-490.0,0.00043835,60]
[368237267,1751069435756,-490.0,0.00043835,60]
[368237268,1751069435766,-490.0,0.00043835,60]
[368237271,1751069435775,-605.11,0.00043835,60]
[368237273,1751069435785,-490.0,0.00043835,60]
[368237275,1751069435794,-598.57,0.00043835,60]
[368237277,1751069435803,-993.79,0.00043835,60]
[368237279,1751069435813,-490.0,0.00043835,60]
[368237281,1751069435822,-567.45,0.00043835,60]
[368237283,1751069435832,-490.0,0.00043835,60]
[368237285,1751069435842,-534.9,0.00043835,60]
[368237287,1751069435851,-490.0,0.00043835,60]
[368237288,1751069435863,-490.0,0.00043835,60]
[368237290,1751069435873,-490.0,0.00043835,60]
[368237292,1751069435882,-358.33462499,0.00043835,60]
[368237294,1751069435892,-490.0,0.00043835,60]
[368237296,1751069435902,-536.43,0.00043835,60]
[368237299,1751069435911,-2349.34,0.00043835,60]
[368237300,1751069435922,-530.0,0.00043835,60]
[368237302,1751069435931,-951.18,0.00043835,60]
[368237304,1751069435940,-490.0,0.00043835,60]
[368237307,1751069435951,-530.0,0.00043835,60]
[368237309,1751069435960,-1597.69,0.00043835,60]
[368237311,1751069435970,-534.98,0.00043835,60]
[368237313,1751069435979,-490.0,0.00043835,60]
[368237315,1751069435988,-540.0,0.00043835,60]
[368237317,1751069435997,-490.0,0.00043835,60]
[368237318,1751069436006,-490.0,0.00043835,60]
[368237321,1751069436016,-490.0,0.00043835,60]
[368237323,1751069436025,-490.0,0.00043835,60]
[368237325,1751069436034,-550.36,0.00043835,60]
[368237327,1751069436043,-490.0,0.00043835,60]
[368237328,1751069436052,-458.44,0.00043835,60]
[368237330,1751069436061,-490.0,0.00043835,60]
[368237332,1751069436071,-490.0,0.00043835,60]
[368237334,1751069436080,-1559.18,0.00043835,60]
[368237336,1751069436089,-490.0,0.00043835,60]
[368237338,1751069436099,-2029.22,0.00043835,60]
[368237340,1751069436108,-490.0,0.00043835,60]
[368237343,1751069436117,-511.81,0.00043835,60]
[368237344,1751069436127,-490.0,0.00043835,60]
[368237346,1751069436136,-490.0,0.00043835,60]
[368237348,1751069436146,-490.0,0.00043835,60]
[368237350,1751069436155,-490.0,0.00043835,60]
[368237352,1751069436164,-490.0,0.00043835,60]
[368237354,1751069436173,-540.0,0.00043835,60]
[368237357,1751069436183,-915.23,0.00043835,60]
[368237359,1751069436192,-490.0,0.00043835,60]
[368237360,1751069436201,-490.0,0.00043835,60]
[368237362,1751069436211,-1000.0,0.00043835,60]
[368237364,1751069436220,-540.0,0.00043835,60]
[368237366,1751069436229,-581.46,0.00043835,60]
[368237368,1751069436238,-540.0,0.00043835,60]
[368237371,1751069436247,-618.44,0.00043835,60]
[368237373,1751069436257,-182.27,0.00043835,60]
[368237375,1751069436267,-826.76,0.00043835,60]
[368237377,1751069436276,-540.0,0.00043835,60]
[368237379,1751069436286,-1823.91,0.00043835,14]
[368237381,1751069436295,-490.0,0.00043835,60]
[368237383,1751069436305,-490.0,0.00043835,60]
[368237385,1751069436315,-490.0,0.00043835,60]
[368237387,1751069436323,-490.0,0.00043835,60]
[368237389,1751069436333,-540.0,0.00043835,60]
[368237391,1751069436342,-490.0,0.00043835,60]
[368237393,1751069436352,-490.0,0.00043835,60]
[368237395,1751069436363,-840.99,0.00043835,60]
[368237397,1751069436372,-490.0,0.00043835,60]
[368237398,1751069436381,-707.76,0.00043835,60]
[368237400,1751069436391,-490.0,0.00043835,60]
[368237403,1751069436400,-1155.7140073,0.00043835,60]
[368237536,1751069437782,-313.5859927,0.00043835,60]
[368237538,1751069437792,-161.048529,0.00043835,60]
[368237540,1751069437802,-490.0,0.00043835,60]
[368237542,1751069437811,-109.73765555,0.00043835,60]
[368237544,1751069437823,-380.26234445,0.00043835,60]
[368237546,1751069437833,-942.44,0.00043835,60]
[368237548,1751069437842,-339.31,0.00043835,60]
[368237551,1751069437852,-222.86,0.00043835,60]
[368237553,1751069437865,-80.43192978,0.00043835,60]
[368237555,1751069437877,-459.56807022,0.00043835,60]
[368237557,1751069437887,-490.0,0.00043835,60]
[368237559,1751069437897,-553.44988849,0.00043835,60]
[368237561,1751069437909,-83.82011151,0.00043835,60]
[368237563,1751069437919,-173.05446679,0.00043835,60]
[368237676,1751069439914,-316.94553321,0.00043835,60]
[368237678,1751069439924,-490.0,0.00043835,60]
[368237679,1751069439933,-150.0,0.000439,2]
[368237681,1751069439943,-168.0,0.00043911,2]
[368237683,1751069439952,-11109.5573323,0.00043999,3]
[368237685,1751069439962,-180.47,0.00044,120]